bitfinex/quotes_SOLUSD_20230402
["timestamp","ask_amount","ask_price","bid_price","bid_amount"]
[1680417450369,10.0,21.057,21.044,40.0]
[1680417451360,10.0,21.057,21.044,10.0]
[1680417453479,26.65,21.05,21.035,10.0]
[1680417453680,10.0,21.049,21.037,10.0]
[1680417454467,10.0,21.049,21.035,10.0]
[1680417454863,10.0,21.049,21.034,16.638]
[1680417455072,10.0,21.049,21.036,10.0]
[1680417455568,10.0,21.049,21.035,30.0]
[1680417466974,10.0,21.049,21.034,35.650313]
[1680417471104,10.0,21.047,21.034,19.012313]
[1680417471396,17.0,21.046,21.034,19.012313]
[1680417471581,10.0,21.045,21.034,19.012313]
[1680417471882,10.0,21.043,21.034,19.012313]
[1680417472082,17.0,21.042,21.034,19.012313]
[1680417474997,17.0,21.042,21.026,267.682141]
[1680417475189,17.0,21.042,21.031,10.0]
[1680417475495,17.0,21.042,21.032,20.0]
[1680417475990,10.0,21.043,21.032,20.0]
[1680417476197,17.0,21.042,21.032,20.0]
[1680417477794,17.0,21.042,21.032,10.0]
[1680417478100,17.0,21.042,21.033,20.0]
[1680417478293,10.0,21.043,21.033,20.0]
[1680417478496,17.0,21.042,21.033,20.0]
[1680417479096,17.0,21.042,21.033,10.0]
[1680417481904,17.0,21.042,21.032,20.0]
[1680417483000,10.0,21.045,21.032,20.0]
[1680417483297,17.0,21.044,21.032,20.0]
[1680417483601,10.0,21.043,21.032,20.0]
[1680417484004,10.0,21.045,21.033,10.0]
[1680417488203,7.13733726,21.047,21.034,16.639]
[1680417488405,115.3217,21.048,21.035,10.0]
[1680417488706,10.0,21.046,21.035,10.0]
[1680417491009,10.0,21.046,21.034,16.639]
[1680417492008,10.0,21.046,21.033,10.0]
[1680417494911,10.0,21.046,21.034,10.0]
[1680417500707,10.0,21.046,21.033,16.64]
[1680417502705,10.0,21.046,21.032,133.0486]
[1680417502905,10.0,21.044,21.032,133.0486]
[1680417503217,10.0,21.042,21.032,133.0486]
[1680417504215,10.0,21.044,21.032,133.0486]
[1680417504415,10.0,21.042,21.032,133.0486]
[1680417505714,17.0,21.043,21.032,133.0486]
[1680417514530,10.0,21.044,21.032,133.0486]
[1680417514728,10.0,21.046,21.035,16.638]
[1680417515833,10.0,21.044,21.035,16.638]
[1680417517630,17.0,21.045,21.035,16.638]
[1680417521027,17.0,21.045,21.033,10.0]
[1680417521732,10.0,21.046,21.033,10.0]
[1680417522033,10.0,21.048,21.033,26.639]
[1680417526231,10.0,21.052,21.04,21.46]
[1680417527439,10.0,21.052,21.038,16.636]
[1680417529039,10.0,21.052,21.039,10.0]
[1680417535426,10.0,21.053,21.039,10.0]
[1680417535726,10.0,21.051,21.039,10.0]
[1680417537042,48.93661059,21.057,21.039,10.0]
[1680417537243,116.3458,21.064,21.041,10.0]
[1680417537452,10.0,21.063,21.043,10.0]
[1680417537829,10.0,21.063,21.044,17.0]
[1680417538042,10.0,21.063,21.045,10.0]
[1680417538228,10.0,21.063,21.046,17.0]
[1680417538548,10.0,21.061,21.047,10.0]
[1680417538751,10.0,21.061,21.049,10.0]
[1680417540046,10.0,21.061,21.047,10.0]
[1680417540250,10.0,21.061,21.049,10.0]
[1680417543247,10.0,21.061,21.047,10.0]
[1680417543452,10.0,21.059,21.047,10.0]
[1680417545847,10.0,21.057,21.045,117.7684]
[1680417546039,17.0,21.056,21.045,117.7684]
[1680417547952,10.0,21.057,21.045,117.7684]
[1680417548133,17.0,21.056,21.045,117.7684]
[1680417549747,10.0,21.057,21.045,117.7684]
[1680417549958,17.0,21.056,21.045,117.7684]
[1680417552448,10.0,21.057,21.045,117.7684]
[1680417552653,17.0,21.056,21.045,117.7684]
[1680417553352,17.0,21.058,21.046,10.0]
[1680417572076,17.0,21.058,21.045,117.7684]
[1680417579478,7.13733726,21.059,21.045,16.63]
[1680417579678,53.74,21.07,21.046,10.0]
[1680417579879,10.0,21.062,21.046,10.0]
[1680417580983,10.0,21.06,21.046,10.0]
[1680417583286,17.0,21.061,21.046,10.0]
[1680417591088,20.0,21.063,21.046,10.0]
[1680417591287,17.0,21.062,21.048,10.0]
[1680417591494,10.0,21.061,21.048,10.0]
[1680417594494,17.0,21.062,21.048,10.0]
[1680417595076,7.13733726,21.063,21.05,21.38]
[1680417595383,130.8687,21.07,21.051,10.0]
[1680417595688,130.8687,21.07,21.051,30.0]
[1680417597491,109.3887,21.07,21.051,30.0]
[1680417604086,109.3887,21.07,21.053,10.0]
[1680417604395,10.0,21.069,21.053,10.0]
[1680417604589,10.0,21.067,21.053,10.0]
[1680417608183,17.0,21.068,21.053,10.0]
[1680417608499,17.13733726,21.069,21.053,10.0]
[1680417608716,17.13733726,21.069,21.055,10.0]
[1680417614308,7.13733726,21.069,21.055,10.0]
[1680417617909,109.3887,21.07,21.057,10.0]
[1680417618119,7.13733726,21.072,21.058,17.0]
[1680417618289,7.13733726,21.072,21.059,10.0]
[1680417624210,123.4442,21.075,21.061,10.0]
[1680417624516,10.0,21.073,21.061,10.0]
[1680417625017,10.0,21.071,21.061,10.0]
[1680417625219,20.0,21.072,21.061,10.0]
[1680417631843,20.0,21.072,21.059,10.0]
[1680417632024,20.0,21.072,21.061,10.0]
[1680417633547,27.13733726,21.072,21.059,10.0]
[1680417633732,27.13733726,21.072,21.061,10.0]
[1680417633937,20.0,21.072,21.061,10.0]
[1680417634331,10.0,21.072,21.061,10.0]
[1680417639250,20.0,21.073,21.061,10.0]
[1680417640843,20.0,21.073,21.059,10.0]
[1680417641045,20.0,21.073,21.061,10.0]
[1680417644953,10.0,21.073,21.061,10.0]
[1680417645151,20.0,21.072,21.061,10.0]
[1680417647752,20.0,21.072,21.059,10.0]
[1680417647950,20.0,21.072,21.061,10.0]
[1680417648251,10.0,21.072,21.061,10.0]
[1680417651655,20.0,21.073,21.061,10.0]
[1680417653365,20.0,21.073,21.059,10.0]
[1680417653659,20.0,21.073,21.061,10.0]
[1680417657563,27.13733726,21.073,21.061,10.0]
[1680417658362,27.13733726,21.073,21.059,10.0]
[1680417658565,27.13733726,21.073,21.061,10.0]
[1680417663870,27.13733726,21.073,21.059,10.0]
[1680417664069,27.13733726,21.073,21.061,10.0]
[1680417668175,27.13733726,21.073,21.059,10.0]
[1680417668369,27.13733726,21.073,21.061,10.0]
[1680417673780,20.0,21.073,21.061,10.0]
[1680417674070,10.0,21.073,21.059,10.0]
[1680417674274,10.0,21.071,21.061,10.0]
[1680417675677,10.0,21.073,21.061,10.0]
[1680417675879,10.0,21.071,21.061,10.0]
[1680417677179,10.0,21.073,21.061,10.0]
[1680417677381,10.0,21.071,21.061,10.0]
[1680417678477,10.0,21.071,21.06,17.0]
[1680417681378,10.0,21.071,21.057,10.0]
[1680417681581,21.41,21.07,21.054,116.2899]
[1680417681881,10.0,21.069,21.056,10.0]
[1680417691694,10.0,21.069,21.055,10.0]
[1680417693793,10.0,21.067,21.055,10.0]
[1680417696502,10.0,21.067,21.053,10.0]
[1680417704103,10.0,21.067,21.055,10.0]
[1680417706103,17.0,21.068,21.055,10.0]
[1680417709115,17.0,21.068,21.054,16.623]
[1680417710022,10.0,21.067,21.054,16.623]
[1680417710212,17.0,21.066,21.054,16.623]
[1680417710511,10.0,21.065,21.054,16.623]
[1680417710712,10.0,21.063,21.054,16.623]
[1680417711011,10.0,21.065,21.054,16.623]
[1680417716022,17.0,21.064,21.054,16.623]
[1680417717402,10.0,21.065,21.054,16.623]
[1680417717700,17.0,21.064,21.054,16.623]
[1680417720416,10.0,21.065,21.054,16.623]
[1680417720618,17.0,21.066,21.054,16.623]
[1680417722511,10.0,21.067,21.054,16.623]
[1680417722818,17.0,21.066,21.054,16.623]
[1680417725218,17.0,21.066,21.054,16.623]
[1680417725424,10.0,21.069,21.055,10.0]
[1680417726624,10.0,21.067,21.055,10.0]
[1680417729426,17.0,21.068,21.055,10.0]
[1680417742632,10.0,21.067,21.054,16.623]
[1680417750642,17.0,21.068,21.054,16.623]
[1680417760836,10.0,21.068,21.054,16.623]
[1680417766742,17.0,21.069,21.054,16.623]
[1680417766949,17.0,21.069,21.055,10.0]
[1680417774655,10.0,21.068,21.054,16.623]
[1680417774842,17.0,21.067,21.054,16.623]
[1680417775038,10.0,21.066,21.054,16.623]
[1680417775343,17.0,21.065,21.054,16.623]
[1680417777264,10.0,21.066,21.054,16.623]
[1680417777559,17.0,21.065,21.054,16.623]
[1680417777945,10.0,21.066,21.054,16.623]
[1680417778148,17.0,21.065,21.054,16.623]
[1680417780461,10.0,21.066,21.054,16.623]
[1680417780658,17.0,21.065,21.054,16.623]
[1680417781045,10.0,21.066,21.054,16.623]
[1680417781243,17.0,21.065,21.054,16.623]
[1680417782545,10.0,21.066,21.054,16.623]
[1680417782745,17.0,21.065,21.054,16.623]
[1680417783763,10.0,21.066,21.054,16.623]
[1680417784056,17.0,21.065,21.054,16.623]
[1680417788665,17.0,21.065,21.051,38.996674]
[1680417788867,10.0,21.066,21.051,38.996674]
[1680417789047,17.0,21.065,21.051,38.996674]
[1680417789251,10.0,21.064,21.051,38.996674]
[1680417789454,10.0,21.062,21.051,38.996674]
[1680417789861,17.0,21.061,21.051,38.996674]
[1680417790258,17.0,21.061,21.051,20.0]
[1680417790461,17.0,21.061,21.051,10.0]
[1680417790667,17.0,21.061,21.052,20.0]
[1680417790854,10.0,21.062,21.052,20.0]
[1680417791168,17.0,21.061,21.052,20.0]
[1680417792462,17.0,21.061,21.051,10.0]
[1680417792650,17.0,21.061,21.052,20.0]
[1680417793464,17.0,21.061,21.051,10.0]
[1680417793664,17.0,21.061,21.052,20.0]
[1680417793864,10.0,21.062,21.052,20.0]
[1680417794064,17.0,21.061,21.052,20.0]
[1680417796072,17.0,21.061,21.051,10.0]
[1680417796270,17.0,21.061,21.052,20.0]
[1680417797173,21.41,21.06,21.052,20.0]
[1680417797473,17.0,21.059,21.051,10.0]
[1680417797675,17.0,21.059,21.052,20.0]
[1680417798457,109.7566,21.065,21.051,10.0]
[1680417798668,10.0,21.063,21.052,20.0]
[1680417798867,17.0,21.062,21.053,10.0]
[1680417801170,10.0,21.062,21.053,10.0]
[1680417801370,17.0,21.061,21.052,20.0]
[1680417801972,10.0,21.062,21.052,20.0]
[1680417802174,17.0,21.061,21.052,20.0]
[1680417803073,10.0,21.062,21.052,20.0]
[1680417803275,17.0,21.061,21.052,20.0]
[1680417804684,10.0,21.062,21.052,20.0]
[1680417804884,17.0,21.061,21.052,20.0]
[1680417805975,10.0,21.064,21.052,20.0]
[1680417805976,10.0,21.062,21.052,20.0]
[1680417806176,17.0,21.061,21.052,20.0]
[1680417807077,10.0,21.062,21.052,20.0]
[1680417807278,17.0,21.061,21.052,20.0]
[1680417808579,10.0,21.062,21.052,20.0]
[1680417808774,17.0,21.063,21.054,10.0]
[1680417809187,10.0,21.063,21.054,10.0]
[1680417809890,17.0,21.064,21.054,10.0]
[1680417813601,17.0,21.064,21.053,16.624]
[1680417827515,109.7566,21.065,21.053,16.624]
[1680417827918,109.7566,21.065,21.054,10.0]
[1680417828132,109.7566,21.065,21.057,16.621]
[1680417828995,7.13733726,21.072,21.057,16.621]
[1680417829313,27.0,21.069,21.057,16.621]
[1680417830813,10.0,21.069,21.057,16.621]
[1680417831020,7.13733726,21.072,21.058,10.0]
[1680417832221,10.0,21.07,21.058,10.0]
[1680417832600,7.13733726,21.072,21.058,10.0]
[1680417832803,113.9843,21.076,21.06,16.618]
[1680417833017,30.0,21.075,21.061,10.0]
[1680417833299,37.13733726,21.075,21.061,10.0]
[1680417833522,10.0,21.073,21.061,10.0]
[1680417833703,20.0,21.072,21.061,10.0]
[1680417833899,10.0,21.071,21.061,10.0]
[1680417834814,17.0,21.07,21.06,16.618]
[1680417835024,10.0,21.069,21.056,16.622]
[1680417835318,10.0,21.067,21.054,123.3549]
[1680417835620,10.0,21.065,21.054,123.3549]
[1680417835810,17.0,21.064,21.054,123.3549]
[1680417836737,10.0,21.065,21.054,123.3549]
[1680417836912,17.0,21.064,21.054,123.3549]
[1680417837600,10.0,21.065,21.054,123.3549]
[1680417837806,17.0,21.064,21.054,123.3549]
[1680417838420,17.0,21.066,21.054,123.3549]
[1680417839618,17.0,21.066,21.056,10.0]
[1680417839822,17.0,21.068,21.056,10.0]
[1680417843928,7.13733726,21.069,21.056,10.0]
[1680417845430,17.0,21.068,21.056,10.0]
[1680417846830,7.13733726,21.069,21.056,10.0]
[1680417848230,10.0,21.071,21.056,10.0]
[1680417848425,10.0,21.069,21.056,10.0]
[1680417851439,17.0,21.07,21.056,10.0]
[1680417875857,17.0,21.07,21.055,16.622]
[1680417876160,10.0,21.069,21.054,123.3549]
[1680417876350,10.0,21.067,21.054,123.3549]
[1680417876545,17.0,21.066,21.054,123.3549]
[1680417878748,10.0,21.067,21.054,123.3549]
[1680417878955,17.0,21.066,21.054,123.3549]
[1680417880159,10.0,21.067,21.054,123.3549]
[1680417880460,17.0,21.066,21.054,123.3549]
[1680417882065,17.0,21.066,21.056,10.0]
[1680417882249,10.0,21.067,21.056,10.0]
[1680417882450,17.0,21.066,21.056,10.0]
[1680417883147,10.0,21.067,21.056,10.0]
[1680417883353,17.0,21.066,21.056,10.0]
[1680417883755,17.0,21.068,21.056,10.0]
[1680417886976,17.0,21.068,21.055,16.623]
[1680417889483,10.0,21.067,21.052,20.0]
[1680417889684,10.0,21.065,21.054,10.0]
[1680417889884,17.0,21.064,21.054,10.0]
[1680417890884,17.0,21.064,21.053,30.0]
[1680417893883,17.0,21.064,21.052,20.0]
[1680417895392,10.0,21.065,21.053,10.0]
[1680417895579,17.0,21.064,21.053,10.0]
[1680417901491,17.0,21.064,21.055,16.622]
[1680417903993,115.3285,21.065,21.055,16.622]
[1680417910999,10.0,21.069,21.055,16.622]
[1680417911202,10.0,21.067,21.055,16.622]
[1680417912901,17.0,21.068,21.055,16.622]
[1680417913903,17.0,21.068,21.056,10.0]
[1680417914104,10.0,21.068,21.056,10.0]
[1680417916101,17.0,21.069,21.056,10.0]
[1680417928095,17.0,21.069,21.06,10.0]
[1680417928800,17.0,21.069,21.059,16.619]
[1680417968248,17.0,21.069,21.059,16.619]
[1680417987861,119.0336,21.07,21.06,21.27]
[1680417988051,113.9843,21.076,21.061,20.0]
[1680417988440,113.9843,21.076,21.062,10.0]
[1680417988945,113.9843,21.076,21.063,16.616]
[1680417989145,113.9843,21.076,21.064,10.0]
[1680417989547,17.0,21.075,21.064,10.0]
[1680417991558,17.0,21.075,21.064,40.0]
[1680417993555,113.9843,21.076,21.067,16.613]
[1680417993759,10.0,21.082,21.068,10.0]
[1680417995365,10.0,21.08,21.068,10.0]
[1680417995868,17.0,21.081,21.068,10.0]
[1680417997368,10.0,21.081,21.068,10.0]
[1680417997557,17.0,21.08,21.068,10.0]
[1680417998264,10.0,21.081,21.068,10.0]
[1680417998464,17.0,21.08,21.068,10.0]
[1680417998664,10.0,21.081,21.068,10.0]
[1680417999360,10.0,21.082,21.071,10.0]
[1680418000559,116.1713,21.083,21.071,10.0]
[1680418000858,42.90605504,21.089,21.071,10.0]
[1680418001064,114.1245,21.089,21.072,20.0]
[1680418001270,114.1245,21.089,21.073,10.0]
[1680418002260,17.0,21.086,21.073,10.0]
[1680418002582,114.1245,21.089,21.075,10.0]
[1680418004962,17.0,21.086,21.075,10.0]
[1680418008363,114.1245,21.089,21.075,10.0]
[1680418011669,10.0,21.085,21.075,10.0]
[1680418012068,17.0,21.086,21.075,10.0]
[1680418013480,114.1245,21.089,21.075,10.0]
[1680418014672,18.985568,21.094,21.075,10.0]
[1680418014873,18.985568,21.094,21.078,16.604]
[1680418014874,10.0,21.093,21.078,16.604]
[1680418015877,10.0,21.093,21.077,10.0]
[1680418016081,27.0,21.089,21.077,10.0]
[1680418017586,10.0,21.089,21.077,10.0]
[1680418017783,10.0,21.093,21.077,26.605]
[1680418019481,10.0,21.093,21.081,10.0]
[1680418019888,10.0,21.093,21.08,21.27]
[1680418020089,10.0,21.091,21.08,21.27]
[1680418021988,20.0,21.092,21.08,21.27]
[1680418022285,20.0,21.092,21.082,10.0]
[1680418022493,10.0,21.092,21.082,10.0]
[1680418022990,20.0,21.093,21.082,10.0]
[1680418023393,10.0,21.092,21.081,17.0]
[1680418023579,10.0,21.092,21.08,37.872]
[1680418023786,10.0,21.092,21.081,10.0]
[1680418024378,17.0,21.091,21.081,10.0]
[1680418025597,10.0,21.091,21.081,10.0]
[1680418026092,17.0,21.092,21.081,10.0]
[1680418026394,10.0,21.091,21.077,10.0]
[1680418027698,17.0,21.092,21.077,10.0]
[1680418037008,17.0,21.092,21.081,10.0]
[1680418039696,17.0,21.092,21.08,21.27]
[1680418039900,12.0,21.093,21.081,10.0]
[1680418040105,17.0,21.092,21.081,10.0]
[1680418040404,10.0,21.091,21.077,10.0]
[1680418042405,17.0,21.092,21.077,10.0]
[1680418042792,10.0,21.091,21.077,10.0]
[1680418043010,10.0,21.089,21.077,10.0]
[1680418043412,17.0,21.088,21.077,10.0]
[1680418049819,10.0,21.089,21.077,10.0]
[1680418050007,17.0,21.088,21.077,10.0]
[1680418053612,10.0,21.089,21.077,10.0]
[1680418053814,17.0,21.088,21.077,10.0]
[1680418054220,17.0,21.088,21.073,10.0]
[1680418054423,113.2964,21.087,21.075,10.0]
[1680418060727,113.2964,21.087,21.077,10.0]
[1680418063829,113.2964,21.087,21.075,10.0]
[1680418064323,10.0,21.086,21.074,16.607]
[1680418064627,10.0,21.086,21.075,10.0]
[1680418066815,113.2964,21.087,21.075,10.0]
[1680418073534,113.2964,21.087,21.074,16.607]
[1680418074533,113.2964,21.087,21.073,10.0]
[1680418076020,10.0,21.086,21.073,10.0]
[1680418080448,113.2964,21.087,21.073,10.0]
[1680418080640,113.2964,21.087,21.074,17.0]
[1680418080843,113.2964,21.087,21.075,10.0]
[1680418083847,113.2964,21.087,21.077,10.0]
[1680418089656,113.2964,21.087,21.077,26.605]
[1680418110478,113.2964,21.087,21.077,10.0]
[1680418115884,113.2964,21.087,21.075,10.0]
[1680418116081,113.2964,21.087,21.077,10.0]
[1680418143018,113.2964,21.087,21.073,26.608]
[1680418143209,113.2964,21.087,21.075,10.0]
[1680418157630,113.2964,21.087,21.077,10.0]
[1680418160123,113.2964,21.087,21.079,10.0]
[1680418160326,113.2964,21.087,21.08,17.0]
[1680418163037,21.39,21.1,21.08,17.0]
[1680418163336,10.0,21.096,21.082,10.0]
[1680418175347,135.5115,21.097,21.082,10.0]
[1680418175848,118.5115,21.097,21.084,10.0]
[1680418182839,118.5115,21.097,21.084,26.6]
[1680418186653,10.0,21.096,21.082,10.0]
[1680418188438,10.0,21.094,21.081,10.0]
[1680418188640,17.0,21.093,21.083,10.0]
[1680418188850,10.0,21.094,21.083,10.0]
[1680418191962,10.0,21.096,21.083,10.0]
[1680418192260,10.0,21.094,21.083,10.0]
[1680418195065,10.0,21.096,21.083,10.0]
[1680418195265,10.0,21.096,21.083,26.6]
[1680418198474,10.0,21.097,21.083,26.6]
[1680418200765,161.96027232,21.104,21.083,26.6]
[1680418200954,10.0,21.097,21.083,26.6]
[1680418202265,10.0,21.097,21.086,16.597]
[1680418202476,161.96027232,21.104,21.087,10.0]
[1680418203361,161.96027232,21.104,21.086,16.597]
[1680418203756,10.0,21.097,21.086,16.597]
[1680418208379,161.96027232,21.104,21.086,16.597]
[1680418209787,161.96027232,21.104,21.088,10.0]
[1680418210386,161.96027232,21.104,21.087,17.0]
[1680418212292,108.5137,21.098,21.087,17.0]
[1680418216981,108.5137,21.098,21.086,16.597]
[1680418217478,108.5137,21.098,21.088,10.0]
[1680418219565,108.5137,21.098,21.086,16.597]
[1680418224882,108.5137,21.098,21.088,10.0]
[1680418226185,108.5137,21.098,21.086,16.597]
[1680418227690,108.5137,21.098,21.083,10.0]
[1680418227891,10.0,21.096,21.083,10.0]
[1680418228781,10.0,21.097,21.085,10.0]
[1680418228986,10.0,21.097,21.086,17.0]
[1680418229186,108.5137,21.098,21.087,10.0]
[1680418230996,108.5137,21.098,21.085,26.599]
[1680418231292,10.0,21.097,21.085,26.599]
[1680418232695,10.0,21.097,21.085,10.0]
[1680418232897,10.0,21.095,21.085,10.0]
[1680418233397,17.0,21.096,21.085,10.0]
[1680418236401,108.5137,21.098,21.085,10.0]
[1680418241617,106.0137,21.098,21.085,10.0]
[1680418241913,17.0,21.097,21.085,10.0]
[1680418242216,10.0,21.096,21.085,10.0]
[1680418242414,17.0,21.095,21.085,10.0]
[1680418243616,17.0,21.095,21.083,10.0]
[1680418245210,10.0,21.096,21.083,10.0]
[1680418245910,10.0,21.097,21.083,10.0]
[1680418246112,10.0,21.095,21.083,10.0]
[1680418247508,17.0,21.096,21.083,10.0]
[1680418249100,106.0137,21.098,21.083,26.6]
[1680418249405,17.0,21.097,21.083,26.6]
[1680418250318,17.0,21.097,21.085,10.0]
[1680418251210,106.0137,21.098,21.085,10.0]
[1680418258408,10.0,21.096,21.085,10.0]
[1680418259523,112.4871,21.097,21.085,10.0]
[1680418274119,112.4871,21.097,21.084,30.0]
[1680418274322,27.0,21.096,21.08,21.22]
[1680418274523,27.0,21.096,21.083,10.0]
[1680418276034,10.0,21.096,21.083,10.0]
[1680418283238,10.0,21.096,21.084,16.599]
[1680418284639,112.4871,21.097,21.084,16.599]
[1680418284942,112.4871,21.097,21.086,10.0]
[1680418287419,112.4871,21.097,21.089,16.596]
[1680418287629,112.4871,21.097,21.09,10.0]
[1680418288640,112.4871,21.097,21.089,16.596]
[1680418290940,106.0137,21.098,21.089,16.596]
[1680418293034,106.0137,21.098,21.086,10.0]
[1680418303757,106.0137,21.098,21.088,10.0]
[1680418304049,106.0137,21.098,21.09,10.0]
[1680418310459,106.0137,21.098,21.088,10.0]
[1680418310757,106.0137,21.098,21.09,10.0]
[1680418315962,106.0137,21.098,21.088,10.0]
[1680418316648,106.0137,21.098,21.087,16.597]
[1680418322562,106.0137,21.098,21.089,10.0]
[1680418327259,106.0137,21.098,21.086,10.0]
[1680418329360,106.0137,21.098,21.088,10.0]
[1680418333165,106.0137,21.098,21.09,10.0]
[1680418334076,106.0137,21.098,21.088,10.0]
[1680418335780,106.0137,21.098,21.058,230.72653633]
[1680418335991,106.0137,21.098,21.083,10.0]
[1680418336167,118.8887,21.097,21.085,10.0]
[1680418336493,10.0,21.096,21.085,10.0]
[1680418338984,10.0,21.096,21.083,10.0]
[1680418344487,10.0,21.096,21.085,10.0]
[1680418344686,10.0,21.096,21.086,17.0]
[1680418345201,10.0,21.096,21.086,10.0]
[1680418345691,10.0,21.096,21.084,23.73633726]
[1680418347896,10.0,21.097,21.084,23.73633726]
[1680418348494,10.0,21.097,21.085,10.0]
[1680418350977,10.0,21.097,21.084,23.73633726]
[1680418359394,10.0,21.095,21.081,10.0]
[1680418359594,10.0,21.095,21.083,10.0]
[1680418363298,17.0,21.094,21.083,10.0]
[1680418363487,10.0,21.093,21.081,10.0]
[1680418363800,10.0,21.093,21.083,10.0]
[1680418363995,10.0,21.093,21.081,10.0]
[1680418364198,10.0,21.093,21.083,10.0]
[1680418364999,10.0,21.093,21.081,10.0]
[1680418365200,10.0,21.093,21.083,10.0]
[1680418366196,10.0,21.093,21.081,10.0]
[1680418366400,10.0,21.093,21.083,10.0]
[1680418367002,10.0,21.093,21.082,20.0]
[1680418369287,10.0,21.095,21.082,20.0]
[1680418369490,10.0,21.093,21.082,20.0]
[1680418370314,21.27,21.09,21.082,20.0]
[1680418370496,10.0,21.089,21.08,20.0]
[1680418371006,21.27,21.09,21.08,20.0]
[1680418372594,17.0,21.089,21.08,20.0]
[1680418375308,21.27,21.09,21.08,20.0]
[1680418376208,10.0,21.093,21.083,10.0]
[1680418377099,10.0,21.093,21.082,16.601]
[1680418378904,21.27,21.1,21.083,10.0]
[1680418379308,10.0,21.095,21.083,10.0]
[1680418380211,10.0,21.093,21.082,16.601]
[1680418380711,10.0,21.099,21.087,16.597]
[1680418381813,10.0,21.097,21.087,16.597]
[1680418382012,17.0,21.096,21.087,16.597]
[1680418382511,10.0,21.095,21.084,10.0]
[1680418382713,10.0,21.093,21.083,10.0]
[1680418384611,10.0,21.095,21.083,10.0]
[1680418384908,10.0,21.095,21.082,16.601]
[1680418384909,10.0,21.093,21.082,16.601]
[1680418389619,17.0,21.094,21.082,16.601]
[1680418392619,10.0,21.095,21.083,10.0]